fUSD/lending_fUSD_20240412
["ID","MTS","AMOUNT","RATE_DAILY","PERIOD"]
[322252830,1712914247762,-500.0,0.0003019,2]
[322252831,1712914247771,-500.0,0.0003019,2]
[322252832,1712914247782,-460.035017,0.0003019,2]
[322252833,1712914247791,-500.0,0.0003019,2]
[322252834,1712914247800,-500.0,0.0003019,2]
[322252835,1712914247812,-564.63,0.0003019,2]
[322252836,1712914247824,-500.0,0.0003019,2]
[322252837,1712914247833,-500.0,0.0003019,2]
[322252838,1712914247845,-500.0,0.0003019,2]
[322252839,1712914247856,-2073.42,0.0003019,2]
[322252840,1712914247866,-500.0,0.0003019,2]
[322252841,1712914247876,-500.0,0.0003019,2]
[322252842,1712914247887,-500.0,0.0003019,2]
[322252843,1712914247897,-500.0,0.0003019,2]
[322252844,1712914247907,-500.0,0.0003019,2]
[322252845,1712914247917,-500.0,0.0003019,2]
[322252846,1712914247927,-1634.23,0.0003019,2]
[322252847,1712914247938,-500.0,0.0003019,2]
[322252848,1712914247950,-3710.07,0.0003019,2]
[322252849,1712914247960,-500.0,0.0003019,2]
[322252850,1712914247971,-166.80428991,0.0003024,7]
[322252851,1712914247982,-260.71269075,0.00030243,2]
[322252852,1712914247993,-593.08396043,0.00030256,2]
[322252853,1712914248003,-692.6,0.00030283,2]
[322252854,1712914248013,-2120.75361991,0.00030287,2]
[322252855,1712914248025,-1515.0,0.000303,2]
[322252856,1712914248035,-44178.4799,0.00030308,2]
[322252857,1712914248045,-161.79781133,0.00030409,4]
[322252858,1712914248054,-595.43,0.0003041,2]
[322252859,1712914248064,-500.0,0.0003041,2]
[322252860,1712914248073,-500.0,0.0003041,2]
[322252861,1712914248083,-329.04,0.0003041,2]
[322252862,1712914248093,-500.0,0.0003041,2]
[322252863,1712914248102,-500.0,0.0003041,2]
[322252864,1712914248112,-500.0,0.0003041,2]
[322252865,1712914248122,-500.0,0.0003041,2]
[322252866,1712914248131,-500.0,0.0003041,2]
[322252867,1712914248141,-500.0,0.0003041,2]
[322252868,1712914248150,-500.0,0.0003041,2]
[322252869,1712914248160,-500.0,0.0003041,2]
[322252870,1712914248169,-156.64160944,0.0003046,7]
[322252871,1712914248178,-500.0,0.00030463,2]
[322252872,1712914248188,-500.0,0.00030463,2]
[322252873,1712914248198,-510.25,0.00030463,2]
[322252874,1712914248208,-500.0,0.00030463,2]
[322252875,1712914248217,-725.5,0.00030463,2]
[322252876,1712914248226,-750.82,0.00030463,2]
[322252877,1712914248235,-500.0,0.00030463,2]
[322252878,1712914248245,-500.0,0.00030463,2]
[322252879,1712914248254,-619.49,0.00030463,2]
[322252880,1712914248263,-714.24,0.00030463,2]
[322252881,1712914248273,-667.06,0.00030463,2]
[322252882,1712914248282,-500.0,0.00030463,2]
[322252883,1712914248292,-500.0,0.00030463,2]
[322252884,1712914248301,-406.13,0.00030463,2]
[322252885,1712914248311,-500.0,0.00030463,2]
[322252886,1712914248321,-500.0,0.00030463,2]
[322252887,1712914248330,-500.0,0.00030463,2]
[322252888,1712914248339,-217.34664915,0.00030463,2]
[322252889,1712914248348,-500.0,0.00030463,2]
[322252890,1712914248359,-1459.21,0.00030463,2]
[322252891,1712914248369,-500.0,0.00030463,2]
[322252892,1712914248378,-500.0,0.00030463,2]
[322252893,1712914248387,-500.0,0.00030463,2]
[322252894,1712914248397,-500.0,0.00030463,2]
[322252895,1712914248406,-500.0,0.00030463,2]
[322252896,1712914248416,-861.17,0.00030463,2]
[322252897,1712914248425,-500.0,0.00030464,2]
[322252898,1712914248435,-912.36,0.00030464,2]
[322252899,1712914248444,-500.0,0.00030464,2]
[322252900,1712914248453,-500.0,0.00030464,2]
[322252901,1712914248462,-500.0,0.00030464,2]
[322252902,1712914248472,-500.87,0.00030464,2]
[322252903,1712914248481,-574.18,0.00030464,2]
[322252904,1712914248490,-294.30512309,0.00030464,2]
[322252905,1712914248501,-168.59,0.00030464,2]
[322252906,1712914248510,-500.0,0.00030464,2]
[322252907,1712914248519,-468.93454009,0.00030464,2]
[322252908,1712914248529,-500.0,0.00030464,2]
[322252909,1712914248538,-500.0,0.00030464,2]
[322252910,1712914248548,-564.63,0.00030464,2]
[322252911,1712914248558,-500.0,0.00030464,2]
[322252912,1712914248568,-500.0,0.00030464,2]
[322252913,1712914248578,-500.0,0.00030464,2]
[322252914,1712914248588,-2073.42,0.00030464,2]
[322252915,1712914248598,-500.0,0.00030464,2]
[322252916,1712914248609,-500.0,0.00030464,2]
[322252917,1712914248619,-500.0,0.00030464,2]
[322252918,1712914248629,-500.0,0.00030464,2]
[322252919,1712914248638,-500.0,0.00030464,2]
[322252920,1712914248648,-500.0,0.00030464,2]
[322252921,1712914248657,-1634.23,0.00030464,2]
[322252922,1712914248667,-500.0,0.00030464,2]
[322252923,1712914248676,-3710.07,0.00030464,2]
[322252924,1712914248686,-500.0,0.00030464,2]
[322252925,1712914248696,-260.71269075,0.00030484,2]
[322252926,1712914248705,-154.20406455,0.00030567,7]
[322252927,1712914248714,-500.0,0.00030584,2]
[322252928,1712914248724,-500.0,0.00030684,2]
[322252929,1712914248733,-500.0,0.00030684,2]
[322252930,1712914248743,-500.0,0.00030684,2]
[322252931,1712914248753,-500.0,0.00030684,2]
[322252932,1712914248762,-500.0,0.00030684,2]
[322252933,1712914248771,-500.0,0.00030684,2]
[322252934,1712914248781,-500.0,0.00030684,2]
[322252935,1712914248791,-588.6,0.00030684,2]
[322252936,1712914248801,-500.0,0.00030684,2]
[322252937,1712914248811,-586.35,0.00030684,2]
[322252938,1712914248820,-371.0,0.00030724,5]
[322252939,1712914248829,-260.71269075,0.00030724,2]
[322252940,1712914248839,-500.0,0.00030737,2]
[322252941,1712914248848,-216.6000759,0.00030737,2]
[322252942,1712914248861,-510.25,0.00030737,2]
[322252943,1712914248872,-500.0,0.00030737,2]
[322252944,1712914248882,-725.5,0.00030737,2]
[322252945,1712914248893,-750.82,0.00030737,2]
[322252946,1712914248905,-500.0,0.00030737,2]
[322252947,1712914248916,-500.0,0.00030737,2]
[322252948,1712914248926,-619.49,0.00030737,2]
[322252949,1712914248936,-714.24,0.00030737,2]
[322252950,1712914248947,-667.06,0.00030737,2]
[322252951,1712914248959,-500.0,0.00030737,2]
[322252952,1712914248970,-500.0,0.00030737,2]
[322252953,1712914248980,-500.0,0.00030737,2]
[322252954,1712914248991,-500.0,0.00030737,2]
[322252955,1712914249001,-500.0,0.00030737,2]
[322252956,1712914249010,-500.0,0.00030737,2]
[322252957,1712914249021,-1459.21,0.00030737,2]
[322252958,1712914249032,-500.0,0.00030737,2]
[322252959,1712914249042,-500.0,0.00030737,2]
[322252960,1712914249051,-500.0,0.00030737,2]
[322252961,1712914249062,-500.0,0.00030737,2]
[322252962,1712914249071,-500.0,0.00030737,2]
[322252963,1712914249081,-861.17,0.00030737,2]
[322252964,1712914249091,-500.0,0.00030738,2]
[322252965,1712914249100,-912.36,0.00030738,2]
[322252966,1712914249111,-500.0,0.00030738,2]
[322252967,1712914249121,-500.0,0.00030738,2]
[322252968,1712914249132,-500.0,0.00030738,2]
[322252969,1712914249141,-500.87,0.00030738,2]
[322252970,1712914249150,-574.18,0.00030738,2]
[322252971,1712914249160,-500.0,0.00030738,2]
[322252972,1712914249170,-308.49975731,0.00030738,2]
[322252973,1712914249181,-500.0,0.00030738,2]
[322252974,1712914249192,-564.63,0.00030738,2]
[322252975,1712914249202,-500.0,0.00030738,2]
[322252976,1712914249212,-500.0,0.00030738,2]
[322252977,1712914249222,-500.0,0.00030738,2]
[322252978,1712914249232,-2073.42,0.00030738,2]
[322252979,1712914249243,-500.0,0.00030738,2]
[322252980,1712914249252,-500.0,0.00030738,2]
[322252981,1712914249262,-500.0,0.00030738,2]
[322252982,1712914249273,-500.0,0.00030738,2]
[322252983,1712914249282,-500.0,0.00030738,2]
[322252984,1712914249293,-500.0,0.00030738,2]
[322252985,1712914249304,-1634.23,0.00030738,2]
[322252986,1712914249313,-500.0,0.00030738,2]
[322252987,1712914249323,-3710.07,0.00030738,2]
[322252988,1712914249333,-500.0,0.00030738,2]
[322252989,1712914249342,-281.05,0.00030958,2]
[322252990,1712914249352,-500.0,0.00030958,2]
[322252991,1712914249364,-500.0,0.00030958,2]
[322252992,1712914249374,-500.0,0.00030958,2]
[322252993,1712914249384,-500.0,0.00030958,2]
[322252994,1712914249393,-500.0,0.00030958,2]
[322252995,1712914249404,-500.0,0.00030958,2]
[322252996,1712914249414,-299.7,0.00030958,2]
[322252997,1712914249424,-251.018097,0.00030959,14]
[322252998,1712914249433,-260.71269075,0.00030965,2]
[322252999,1712914249443,-50000.0,0.00031,21]
[322253000,1712914249455,-600.0,0.00031,3]
[322253001,1712914249465,-500.0,0.00031011,2]
[322253002,1712914249476,-510.25,0.00031011,2]
[322253003,1712914249486,-500.0,0.00031011,2]
[322253004,1712914249496,-725.5,0.00031011,2]
[322253005,1712914249508,-750.82,0.00031011,2]
[322253006,1712914249518,-500.0,0.00031011,2]
[322253007,1712914249527,-500.0,0.00031011,2]
[322253008,1712914249537,-619.49,0.00031011,2]
[322253009,1712914249547,-714.24,0.00031011,2]
[322253010,1712914249557,-667.06,0.00031011,2]
[322253011,1712914249568,-500.0,0.00031011,2]
[322253012,1712914249577,-174.95650966,0.00031011,2]
[322253013,1712914249587,-500.0,0.00031011,2]
[322253014,1712914249596,-500.0,0.00031011,2]
[322253015,1712914249608,-500.0,0.00031011,2]
[322253016,1712914249617,-500.0,0.00031011,2]
[322253017,1712914249626,-1459.21,0.00031011,2]
[322253018,1712914249635,-500.0,0.00031011,2]
[322253019,1712914249644,-500.0,0.00031011,2]
[322253020,1712914249653,-299.38750401,0.00031011,2]
[322253021,1712914249663,-500.0,0.00031011,2]
[322253022,1712914249672,-296.89959511,0.00031011,2]
[322253023,1712914249682,-861.17,0.00031011,2]
[322253024,1712914249691,-500.0,0.00031012,2]
[322253025,1712914249700,-912.36,0.00031012,2]
[322253026,1712914249710,-500.0,0.00031012,2]
[322253027,1712914249719,-500.0,0.00031012,2]
[322253028,1712914249728,-500.0,0.00031012,2]
[322253029,1712914249738,-500.87,0.00031012,2]
[322253030,1712914249747,-574.18,0.00031012,2]
[322253031,1712914249756,-500.0,0.00031012,2]
[322253032,1712914249766,-500.0,0.00031012,2]
[322253033,1712914249775,-564.63,0.00031012,2]
[322253034,1712914249785,-500.0,0.00031012,2]
[322253035,1712914249794,-500.0,0.00031012,2]
[322253036,1712914249803,-500.0,0.00031012,2]
[322253037,1712914249815,-2073.42,0.00031012,2]
[322253038,1712914249824,-500.0,0.00031012,2]
[322253039,1712914249833,-500.0,0.00031012,2]
[322253040,1712914249842,-500.0,0.00031012,2]
[322253041,1712914249852,-500.0,0.00031012,2]
[322253042,1712914249862,-280.3,0.00031012,2]
[322253043,1712914249872,-1634.23,0.00031012,2]
[322253044,1712914249881,-500.0,0.00031012,2]
[322253045,1712914249890,-3710.07,0.00031012,2]
[322253046,1712914249900,-500.0,0.00031012,2]
[322253047,1712914249909,-200.0,0.00031031,7]
[322253048,1712914249918,-166.66666667,0.00031091,7]
[322253049,1712914249927,-152.0,0.00031192,3]
[322253050,1712914249937,-260.71269075,0.00031206,2]
[322253051,1712914249951,-500.0,0.00031232,2]
[322253052,1712914249960,-500.0,0.00031232,2]
[322253053,1712914249970,-500.0,0.00031232,2]
[322253054,1712914250065,-500.0,0.00031232,2]
[322253055,1712914250075,-429.38,0.00031232,2]
[322253056,1712914250083,-500.0,0.00031232,2]
[322253057,1712914250093,-180.26,0.00031285,2]
[322253058,1712914250102,-510.25,0.00031285,2]
[322253059,1712914250113,-568.6518565,0.00031285,2]
[322253060,1712914250122,-725.5,0.00031285,2]
[322253061,1712914250131,-750.82,0.00031285,2]
[322253062,1712914250140,-500.0,0.00031285,2]
[322253063,1712914250150,-500.0,0.00031285,2]
[322253064,1712914250160,-619.49,0.00031285,2]
[322253065,1712914250169,-714.24,0.00031285,2]
[322253066,1712914250178,-667.06,0.00031285,2]
[322253067,1712914250188,-500.0,0.00031285,2]
[322253068,1712914250197,-500.0,0.00031285,2]
[322253069,1712914250206,-500.0,0.00031285,2]
[322253070,1712914250216,-500.0,0.00031285,2]
[322253071,1712914250225,-440.08776867,0.00031285,2]
[322253072,1712914250234,-1459.21,0.00031285,2]
[322253073,1712914250243,-500.0,0.00031285,2]
[322253074,1712914250252,-500.0,0.00031285,2]
[322253075,1712914250261,-500.0,0.00031285,2]
[322253076,1712914250270,-861.17,0.00031285,2]
[322253077,1712914250279,-500.0,0.00031286,2]
[322253078,1712914250288,-912.36,0.00031286,2]
[322253079,1712914250298,-500.0,0.00031286,2]
[322253080,1712914250307,-500.0,0.00031286,2]
[322253081,1712914250316,-500.0,0.00031286,2]
[322253082,1712914250326,-500.87,0.00031286,2]
[322253083,1712914250335,-574.18,0.00031286,2]
[322253084,1712914250344,-500.0,0.00031286,2]
[322253085,1712914250354,-500.0,0.00031286,2]
[322253086,1712914250365,-564.63,0.00031286,2]
[322253087,1712914250374,-500.0,0.00031286,2]
[322253088,1712914250384,-278.69,0.00031286,2]
[322253089,1712914250393,-500.0,0.00031286,2]
[322253090,1712914250402,-2073.42,0.00031286,2]
[322253091,1712914250411,-639.3,0.00031286,2]
[322253092,1712914250424,-500.0,0.00031286,2]
[322253093,1712914250433,-500.0,0.00031286,2]
[322253094,1712914250443,-1634.23,0.00031286,2]
[322253095,1712914250452,-500.0,0.00031286,2]
[322253096,1712914250461,-3710.07,0.00031286,2]
[322253097,1712914250470,-500.0,0.00031286,2]
[322253098,1712914250481,-153.0581708,0.00031334,2]
[322253099,1712914250490,-168.61,0.00031339,2]
[322253100,1712914250500,-260.71269075,0.00031447,2]
[322253101,1712914250509,-150.0,0.000315,3]
[322253102,1712914250519,-500.0,0.00031506,2]
[322253103,1712914250528,-500.0,0.00031506,2]
[322253104,1712914250537,-500.0,0.00031506,2]
[322253105,1712914250546,-500.0,0.00031506,2]
[322253106,1712914250555,-500.0,0.00031506,2]
[322253107,1712914250566,-3285.59603357,0.00031527,2]
[322253108,1712914250575,-510.25,0.00031559,2]
[322253109,1712914250584,-725.5,0.00031559,2]
[322253110,1712914250593,-750.82,0.00031559,2]
[322253111,1712914250602,-500.0,0.00031559,2]
[322253112,1712914250614,-607.30013806,0.00031559,2]
[322253113,1712914250623,-619.49,0.00031559,2]
[322253114,1712914250632,-714.24,0.00031559,2]
[322253115,1712914250642,-667.06,0.00031559,2]
[322253116,1712914250651,-500.0,0.00031559,2]
[322253117,1712914250661,-500.0,0.00031559,2]
[322253118,1712914250670,-237.15,0.00031559,2]
[322253119,1712914250679,-500.0,0.00031559,2]
[322253120,1712914250689,-1459.21,0.00031559,2]
[322253121,1712914250698,-500.0,0.00031559,2]
[322253122,1712914250711,-500.0,0.00031559,2]
[322253123,1712914250721,-500.0,0.00031559,2]
[322253124,1712914250732,-861.17,0.00031559,2]
[322253125,1712914250742,-500.0,0.0003156,2]
[322253126,1712914250752,-912.36,0.0003156,2]
[322253127,1712914250762,-500.0,0.0003156,2]
[322253128,1712914250772,-500.0,0.0003156,2]
[322253129,1712914250782,-256.54247258,0.0003156,2]
[322253130,1712914250791,-500.87,0.0003156,2]
[322253131,1712914250801,-574.18,0.0003156,2]
[322253132,1712914250810,-500.0,0.0003156,2]
[322253133,1712914250820,-500.0,0.0003156,2]
[322253134,1712914250830,-564.63,0.0003156,2]
[322253135,1712914250840,-500.0,0.0003156,2]
[322253136,1712914250850,-500.0,0.0003156,2]
[322253137,1712914250861,-2073.42,0.0003156,2]
[322253138,1712914250871,-500.0,0.0003156,2]
[322253139,1712914250880,-500.0,0.0003156,2]
[322253140,1712914250890,-1634.23,0.0003156,2]
[322253141,1712914250900,-500.0,0.0003156,2]
[322253142,1712914250909,-3710.07,0.0003156,2]
[322253143,1712914250919,-500.0,0.0003156,2]
[322253144,1712914250928,-153.05817079,0.00031617,3]
[322253145,1712914250938,-156.33363119,0.00031646,7]
[322253146,1712914250949,-260.71269075,0.00031688,2]
[322253147,1712914250959,-362.331097,0.00031724,2]
[322253148,1712914250968,-200.0,0.00031734,2]
[322253149,1712914250981,-1000.0,0.00031734,10]
[322253150,1712914250991,-500.0,0.00031734,2]
[322253151,1712914251000,-500.0,0.00031734,2]
[322253152,1712914251009,-200.0,0.00031743,2]
[322253153,1712914251019,-1000.0,0.00031743,10]
[322253154,1712914251031,-500.0,0.00031743,2]
[322253155,1712914251042,-500.0,0.0003178,2]
[322253156,1712914251051,-573.21,0.0003178,2]
[322253157,1712914251061,-500.0,0.0003178,2]
[322253158,1712914251071,-500.0,0.0003178,2]
[322253159,1712914251081,-500.0,0.0003178,2]
[322253160,1712914251090,-251.018097,0.00031781,14]
[322253161,1712914251099,-4177.43419247,0.00031799,3]
[322253162,1712914251110,-180.00658197,0.00031799,3]
[322253163,1712914251120,-510.25,0.00031833,2]
[322253164,1712914251130,-725.5,0.00031833,2]
[322253165,1712914251139,-750.82,0.00031833,2]
[322253166,1712914251149,-500.0,0.00031833,2]
[322253167,1712914251159,-619.49,0.00031833,2]
[322253168,1712914251169,-714.24,0.00031833,2]
[322253169,1712914251178,-667.06,0.00031833,2]
[322253170,1712914251188,-500.0,0.00031833,2]
[322253171,1712914251197,-500.0,0.00031833,2]
[322253172,1712914251207,-500.0,0.00031833,2]
[322253173,1712914251216,-1459.21,0.00031833,2]
[322253174,1712914251225,-500.0,0.00031833,2]
[322253175,1712914251235,-500.0,0.00031833,2]
[322253176,1712914251244,-538.31277881,0.00031833,2]
[322253177,1712914251254,-861.17,0.00031833,2]
[322253178,1712914251265,-500.0,0.00031834,2]
[322253179,1712914251274,-912.36,0.00031834,2]
[322253180,1712914251284,-317.54424012,0.00031834,2]
[322253181,1712914251295,-447.19519124,0.00031834,2]
[322253182,1712914251304,-500.87,0.00031834,2]
[322253183,1712914251314,-574.18,0.00031834,2]
[322253184,1712914251324,-500.0,0.00031834,2]
[322253185,1712914251333,-500.0,0.00031834,2]
[322253186,1712914251343,-564.63,0.00031834,2]
[322253187,1712914251353,-500.0,0.00031834,2]
[322253188,1712914251364,-500.0,0.00031834,2]
[322253189,1712914251373,-2073.42,0.00031834,2]
[322253190,1712914251383,-500.0,0.00031834,2]
[322253191,1712914251395,-500.0,0.00031834,2]
[322253192,1712914251416,-1634.23,0.00031834,2]
[322253193,1712914251426,-500.0,0.00031834,2]
[322253194,1712914251436,-3710.07,0.00031834,2]
[322253195,1712914251446,-500.0,0.00031834,2]
[322253196,1712914251456,-494.22422108,0.00031877,2]
[322253197,1712914251466,-874.35861166,0.0003188,2]
[322253198,1712914251475,-155.80223276,0.0003188,2]
[322253199,1712914251485,-2625.74496816,0.0003188,2]
[322253200,1712914251494,-351.82655751,0.0003188,2]
[322253201,1712914251504,-494.22422108,0.0003188,2]
[322253202,1712914251514,-400.11321085,0.00031884,2]
[322253203,1712914251523,-400.11321085,0.00031885,2]
[322253204,1712914251533,-494.22422108,0.00031887,2]
[322253205,1712914251542,-23700.0,0.0003189,4]
[322253206,1712914251552,-400.11321085,0.00031895,2]
[322253207,1712914251561,-244.85592718,0.00031897,15]
[322253208,1712914251571,-155.2308273,0.00031897,4]
[322253209,1712914251581,-2603.13196047,0.00031897,4]
[322253210,1712914251590,-807.96572199,0.00031897,4]
[322253211,1712914251600,-190.17443291,0.00031898,4]
[322253212,1712914251609,-2350.74431941,0.00031898,4]
[322253213,1712914251619,-156.18240919,0.00031898,4]
[322253214,1712914251628,-156.63560241,0.00031898,4]
[322253215,1712914251638,-155.98437157,0.00031898,4]
[322253216,1712914251648,-178.09535049,0.00031899,4]
[322253217,1712914251657,-104064.58436999,0.00031899,4]
[322253218,1712914251667,-711.16955129,0.00031899,4]
[322253219,1712914251676,-153.05817079,0.000319,3]
[322253220,1712914251685,-1000.0,0.000319,2]
[322253221,1712914251695,-400.11321085,0.000319,2]
[322253222,1712914251704,-400.11321085,0.00031909,2]
[322253223,1712914251714,-400.11321085,0.0003191,2]
[322253224,1712914251723,-231.87406009,0.00031913,2]
[322253225,1712914251733,-494.22422108,0.00031918,2]
[322253226,1712914251743,-494.22422108,0.0003192,2]
[322253227,1712914251753,-231.87406009,0.00031922,2]
[322253228,1712914251762,-231.87406009,0.00031926,2]
[322253229,1712914251772,-260.71269075,0.00031928,2]
[322253230,1712914251784,-494.22422108,0.00031929,2]
[322253231,1712914251794,-231.87406009,0.00031933,2]
[322253232,1712914251803,-196.5425731,0.00031933,2]
[322253233,1712914251813,-231.87406009,0.00031936,2]
[322253234,1712914251836,-196.5425731,0.00031942,2]
[322253235,1712914251846,-494.22422108,0.00031953,2]
[322253236,1712914251856,-196.5425731,0.00031959,2]
[322253237,1712914251866,-231.87406009,0.00031961,2]
[322253238,1712914251876,-400.11321085,0.00031963,2]
[322253239,1712914251886,-231.87406009,0.00031967,2]
[322253240,1712914251896,-494.22422108,0.0003197,2]
[322253241,1712914251905,-161.39214039,0.00031971,7]
[322253242,1712914251915,-196.5425731,0.00031971,2]
[322253243,1712914251924,-231.87406009,0.00031974,2]
[322253244,1712914251934,-231.87406009,0.00031975,2]
[322253245,1712914251946,-196.5425731,0.00031975,2]
[322253246,1712914251956,-196.5425731,0.00031976,2]
[322253247,1712914251967,-400.11321085,0.00031981,2]
[322253248,1712914251977,-196.5425731,0.00031981,2]
[322253249,1712914251988,-494.22422108,0.00031984,2]
[322253250,1712914251998,-196.5425731,0.0003199,2]
[322253251,1712914252008,-382.34079739,0.0003199,2]
[322253252,1712914252018,-196.5425731,0.0003199,2]
[322253253,1712914252029,-400.11321085,0.00031995,2]
[322253254,1712914252038,-503.1782956,0.00031997,2]
[322253255,1712914252048,-660.9858628,0.00031997,2]
[322253256,1712914252058,-765.3442557,0.00031997,2]
[322253257,1712914252068,-5058.30625529,0.00031999,2]
[322253258,1712914252077,-100000.0,0.00032,22]
[322253259,1712914252087,-20128.2986097,0.00032,2]
[322253260,1712914252276,-1280515.36595781,0.00032,2]
[322253261,1712914252288,-1500.78124376,0.00032,3]
[322253262,1712914252297,-200.0,0.00032,15]
[322253263,1712914252307,-332.95119539,0.00032,4]
[322253264,1712914252317,-594.96211674,0.00032,2]
[322253265,1712914252328,-1603.32385558,0.00032,4]
[322253266,1712914252338,-2073.7628366,0.00032,2]
[322253267,1712914252348,-400.82,0.00032,2]
[322253268,1712914252359,-150.0,0.00032,5]
[322253269,1712914252369,-394.0,0.00032,5]
[322253270,1712914252379,-416.0,0.00032,5]
[322253271,1712914252390,-150.0,0.00032,3]
[322253272,1712914252400,-1313.63491,0.00032,2]
[322253273,1712914252410,-251.58914827,0.00032009,2]
[322253274,1712914252421,-1514.1810324,0.00032009,2]
[322253275,1712914252432,-826.23232857,0.00032031,2]
[322253276,1712914252442,-3378.6283079,0.00032031,2]
[322253277,1712914252452,-500.0,0.00032053,2]
[322253278,1712914252462,-329.06,0.00032054,2]
[322253279,1712914252473,-500.0,0.00032054,2]
[322253280,1712914252484,-500.0,0.00032054,2]
[322253281,1712914252494,-510.25,0.00032107,2]
[322253282,1712914252505,-725.5,0.00032107,2]
[322253283,1712914252514,-750.82,0.00032107,2]
[322253284,1712914252524,-500.0,0.00032107,2]
[322253285,1712914252535,-619.49,0.00032107,2]
[322253286,1712914252546,-714.24,0.00032107,2]
[322253287,1712914252558,-667.06,0.00032107,2]
[322253288,1712914252567,-500.0,0.00032107,2]
[322253289,1712914252577,-500.0,0.00032107,2]
[322253290,1712914252588,-400.99264128,0.00032107,2]
[322253291,1712914252598,-1459.21,0.00032107,2]
[322253292,1712914252607,-361.78858167,0.00032107,2]
[322253293,1712914252617,-560.03358274,0.00032107,2]
[322253294,1712914252627,-861.17,0.00032107,2]
[322253295,1712914252639,-500.0,0.00032108,2]
[322253296,1712914252649,-912.36,0.00032108,2]
[322253297,1712914252659,-500.87,0.00032108,2]
[322253298,1712914252669,-574.18,0.00032108,2]
[322253299,1712914252679,-500.0,0.00032108,2]
[322253300,1712914252692,-500.0,0.00032108,2]
[322253301,1712914252703,-564.63,0.00032108,2]
[322253302,1712914252713,-500.0,0.00032108,2]
[322253303,1712914252723,-500.0,0.00032108,2]
[322253304,1712914252732,-2073.42,0.00032108,2]
[322253305,1712914252742,-500.0,0.00032108,2]
[322253306,1712914252752,-500.0,0.00032108,2]
[322253307,1712914252762,-1634.23,0.00032108,2]
[322253308,1712914252771,-500.0,0.00032108,2]
[322253309,1712914252780,-3710.07,0.00032108,2]
[322253310,1712914252790,-500.0,0.00032108,2]
[322253311,1712914252800,-1286.04656595,0.0003216,2]
[322253312,1712914252810,-260.71269075,0.00032169,2]
[322253313,1712914252820,-175.29854916,0.00032283,2]
[322253314,1712914252830,-3285.59603358,0.00032298,2]
[322253315,1712914252841,-16803.5642701,0.000323,2]
[322253316,1712914252850,-500.0,0.00032327,2]
[322253317,1712914252860,-441.65,0.00032328,2]
[322253318,1712914252870,-275.65,0.00032328,2]
[322253319,1712914252879,-510.25,0.00032381,2]
[322253320,1712914252889,-725.5,0.00032381,2]
[322253321,1712914252898,-750.82,0.00032381,2]
[322253322,1712914252908,-500.0,0.00032381,2]
[322253323,1712914252917,-619.49,0.00032381,2]
[322253324,1712914252927,-714.24,0.00032381,2]
[322253325,1712914252937,-667.06,0.00032381,2]
[322253326,1712914252948,-500.0,0.00032381,2]
[322253327,1712914252958,-500.0,0.00032381,2]
[322253328,1712914252967,-1459.21,0.00032381,2]
[322253329,1712914252977,-861.17,0.00032381,2]